bitfinex-derivatives/quotes_BTCF0:USTF0_20210105
["timestamp","ask_amount","ask_price","bid_price","bid_amount"]
[1609821056900,0.13632608,31360.0,31355.0,0.13632608]
[1609821057100,0.11281,31372.0,31355.0,0.13632608]
[1609821057300,0.11281,31372.0,31355.0,0.26475608]
[1609821058301,0.2928,31376.0,31355.0,0.26475608]
[1609821058501,0.56899682,31380.0,31355.0,0.26475608]
[1609821058902,0.2729,31386.0,31370.0,0.13632608]
[1609821058903,0.13632608,31374.0,31370.0,0.13632608]
[1609821061103,0.13632608,31374.0,31364.0,4.4628]
[1609821061805,0.57135037,31384.0,31364.0,4.4628]
[1609821062005,0.57135037,31384.0,31364.0,4.61677]
[1609821062507,0.57138715,31383.0,31364.0,4.61677]
[1609821063106,0.13632608,31374.0,31364.0,4.75309608]
[1609821065008,0.13632608,31374.0,31369.0,0.13632608]
[1609821065408,0.13632608,31374.0,31364.0,4.61677]
[1609821065608,0.13632608,31374.0,31364.0,0.15397]
[1609821066008,0.57665415,31376.0,31364.0,0.15397]
[1609821066911,0.57469925,31377.0,31364.0,0.15397]
[1609821067110,0.13632608,31365.0,31364.0,0.15397]
[1609821067310,0.13632608,31365.0,31355.0,0.12843]
[1609821067512,0.13632608,31365.0,31342.0,0.09793]
[1609821067911,0.13632608,31365.0,31329.0,3.9516]
[1609821069012,0.583,31368.0,31341.0,0.13632608]
[1609821069215,0.583,31368.0,31341.0,0.29665608]
[1609821069414,0.583,31368.0,31341.0,0.16033]
[1609821069614,0.583,31368.0,31305.0,1.63852032]
[1609821069814,3.724,31354.0,31305.0,1.63852032]
[1609821070014,3.84858,31354.0,31305.0,1.63852032]
[1609821070915,0.0965,31353.0,31305.0,1.63852032]
[1609821071115,3.6561,31335.0,31305.0,1.63852032]
[1609821071315,3.78132,31335.0,31305.0,1.63852032]
[1609821071514,3.78132,31335.0,31302.0,1.64226586]
[1609821071915,3.78132,31335.0,31304.0,0.13632608]
[1609821072117,3.78132,31335.0,31304.0,0.29720608]
[1609821072917,0.57726956,31331.0,31304.0,0.29720608]
[1609821073917,0.13632608,31312.0,31304.0,0.29720608]
[1609821075424,0.10625,31322.0,31304.0,0.29720608]
[1609821075819,0.10625,31322.0,31304.0,0.16088]
[1609821076319,0.13632608,31318.0,31313.0,0.13632608]
[1609821076720,0.10625,31322.0,31304.0,0.16088]
[1609821077421,0.10625,31322.0,31304.0,0.14761]
[1609821078023,0.10625,31322.0,31304.0,5.41481]
[1609821078223,0.57682554,31329.0,31304.0,5.41481]
[1609821078423,0.57682554,31329.0,31328.0,0.13632608]
[1609821078625,0.13632608,31333.0,31328.0,0.11489]
[1609821078825,0.57672514,31338.0,31328.0,0.11489]
[1609821080425,0.57663574,31344.0,31337.0,0.13632608]
[1609821080623,0.57663574,31344.0,31337.0,0.28409608]
[1609821081322,0.57663574,31344.0,31337.0,0.14777]
[1609821081526,0.57688358,31352.0,31337.0,0.14777]
[1609821082528,0.57688358,31352.0,31342.0,0.13632608]
[1609821082728,0.57688606,31360.0,31342.0,0.13632608]
[1609821083126,0.57688606,31360.0,31337.0,0.14777]
[1609821083530,0.57699121,31357.0,31337.0,0.14777]
[1609821084128,0.692351,31358.0,31337.0,0.14777]
[1609821084129,0.57693211,31358.0,31337.0,0.14777]
[1609821084535,0.57693211,31358.0,31357.0,0.13632608]
[1609821085134,0.57678089,31363.0,31357.0,0.13632608]
[1609821086132,0.57678089,31363.0,31356.0,0.13331]
[1609821086631,0.13632608,31358.0,31357.0,0.13632608]
[1609821087031,0.57678089,31363.0,31357.0,0.13632608]
[1609821088731,0.57678089,31363.0,31362.0,0.13632608]
[1609821089332,0.13632608,31369.0,31362.0,0.13632608]
[1609821090134,0.57617183,31368.0,31362.0,0.13632608]
[1609821090533,0.57617183,31368.0,31356.0,0.13331]
[1609821090735,0.57565264,31377.0,31356.0,0.13331]
[1609821090933,0.13632608,31369.0,31368.0,0.13632608]
[1609821091334,0.13632608,31369.0,31349.0,3.9135]
[1609821094237,0.57565479,31376.0,31349.0,3.9135]
[1609821094437,0.57565479,31376.0,31349.0,4.02872]
[1609821095139,0.13632608,31373.0,31349.0,4.02872]
[1609821096641,0.13632608,31373.0,31362.0,5.0633]
[1609821097041,0.57565479,31376.0,31362.0,5.0633]
[1609821097445,0.57565479,31376.0,31375.0,0.13632608]
[1609821097642,0.24965479,31376.0,31375.0,0.13632608]
[1609821097843,0.24965479,31376.0,31349.0,0.11522]
[1609821098043,0.6907448,31378.0,31349.0,0.11522]
[1609821098243,0.6907448,31378.0,31374.0,5.2029]
[1609821098846,0.2842,31407.0,31374.0,5.2029]
[1609821098847,1.15590618,31401.0,31374.0,5.30046]
[1609821100049,1.15590618,31401.0,31400.0,0.13632608]
[1609821100450,0.68922009,31404.0,31400.0,0.13632608]
[1609821100650,0.68922009,31404.0,31401.0,5.2548]
[1609821101249,1.12653757,31407.0,31401.0,5.2548]
[1609821101250,0.2842,31407.0,31401.0,5.2548]
[1609821102052,0.2842,31407.0,31406.0,0.13632608]
[1609821102251,0.2842,31407.0,31406.0,0.28569608]
[1609821103753,0.2842,31407.0,31406.0,0.14937]
[1609821103952,0.2842,31407.0,31401.0,5.2548]
[1609821104152,0.13632608,31402.0,31401.0,5.2548]
[1609821104352,0.13632608,31402.0,31399.0,0.10406]
[1609821104952,0.13632608,31402.0,31380.0,4.7996]
[1609821105353,0.13632608,31402.0,31374.0,0.09756]
[1609821105553,0.13632608,31402.0,31360.0,4.3382]
[1609821106254,0.13632608,31374.0,31365.0,0.13632608]
[1609821106454,0.13632608,31374.0,31360.0,4.3382]
[1609821106654,0.13632608,31374.0,31338.0,2.1462993]
[1609821106856,0.13632608,31374.0,31346.0,5.1119]
[1609821108254,0.10922,31377.0,31346.0,5.1119]
[1609821108457,0.10922,31377.0,31346.0,5.24809]
[1609821110357,0.2955,31385.0,31346.0,5.24809]
[1609821110759,0.2955,31385.0,31373.0,0.13632608]
[1609821110961,0.2955,31385.0,31360.0,3.973]
[1609821111163,0.2955,31385.0,31366.0,0.10507]
[1609821111764,4.5829,31384.0,31366.0,0.1347]
[1609821112565,0.13632608,31367.0,31366.0,0.1347]
[1609821112769,0.13632608,31367.0,31353.0,0.13632608]
[1609821113169,0.13632608,31367.0,31346.0,4.79739]
[1609821113368,0.13632608,31367.0,31346.0,0.13619]
[1609821113568,0.13632608,31367.0,31332.0,3.6703]
[1609821114570,0.14787,31372.0,31347.0,0.13632608]
[1609821116269,0.14787,31372.0,31345.0,0.10475]
[1609821116670,0.13632608,31367.0,31345.0,0.10475]
[1609821118473,0.14787,31372.0,31345.0,0.10475]
[1609821118672,0.68726411,31382.0,31345.0,0.10475]
[1609821118872,0.2955,31385.0,31345.0,0.10475]
[1609821118873,0.13632608,31367.0,31362.0,0.13632608]
[1609821120875,0.13632608,31367.0,31366.0,0.13632608]
[1609821121275,0.13632608,31367.0,31366.0,0.29327608]
[1609821121475,0.68750868,31389.0,31366.0,0.29327608]
[1609821122077,0.68734414,31390.0,31366.0,0.29327608]
[1609821122477,0.68734414,31390.0,31373.0,4.3278]
[1609821122677,0.68723369,31399.0,31373.0,4.42579]
[1609821122877,0.82355977,31399.0,31389.0,0.13632608]
[1609821123081,0.82355977,31399.0,31389.0,0.25204608]
[1609821123277,0.68723369,31399.0,31389.0,0.25204608]
[1609821123478,0.6870921,31406.0,31389.0,0.25204608]
[1609821124078,0.6870921,31406.0,31396.0,4.2239]
[1609821124279,0.6870921,31406.0,31396.0,4.33839]
[1609821124478,0.6868292,31411.0,31396.0,4.33839]
[1609821124878,0.6868292,31411.0,31410.0,0.13632608]
[1609821125079,0.6868292,31411.0,31410.0,0.79477608]
[1609821125282,0.68664475,31425.0,31410.0,0.79477608]
[1609821125478,0.68664475,31425.0,31410.0,0.11385]
[1609821125681,0.68664475,31425.0,31411.0,4.7948]
[1609821126080,0.02320688,31426.0,31411.0,4.7948]
[1609821127079,0.02320688,31426.0,31425.0,0.13632608]
[1609821127978,0.02320688,31426.0,31419.0,0.15563]
[1609821128779,0.02320688,31426.0,31411.0,4.7948]
[1609821129181,0.13632608,31420.0,31411.0,4.7948]
[1609821129880,0.02320688,31426.0,31411.0,4.7948]
[1609821130482,0.02320688,31426.0,31410.0,0.11385]
[1609821130681,0.02320688,31426.0,31398.0,4.4662]
[1609821131082,0.13632608,31412.0,31401.0,0.13632608]
[1609821131884,0.12639,31419.0,31396.0,0.11449]
[1609821132085,0.12639,31419.0,31384.0,4.0297]
[1609821132284,0.12639,31419.0,31357.0,1.72769688]
[1609821132486,3.6893,31410.0,31357.0,1.72769688]
[1609821132686,3.81258,31410.0,31357.0,1.72769688]
[1609821133086,0.13632608,31378.0,31376.0,0.13632608]
[1609821134486,0.13632608,31378.0,31357.0,1.72769688]
[1609821135086,0.13632608,31378.0,31375.0,0.13632608]
[1609821135489,0.13632608,31378.0,31373.0,0.10375]
[1609821136489,0.1578,31388.0,31373.0,0.10375]
[1609821136688,0.13186,31395.0,31373.0,0.10375]
[1609821137088,0.0944,31394.0,31387.0,0.13632608]
[1609821137288,0.0944,31394.0,31373.0,0.10375]
[1609821137488,0.0944,31394.0,31381.0,4.8114]
[1609821137792,0.0944,31394.0,31381.0,4.94797]
[1609821139092,0.0944,31394.0,31381.0,0.13657]
[1609821140395,0.2889,31418.0,31381.0,0.13657]
[1609821140596,0.01922539,31417.0,31381.0,3.82597]
[1609821141198,0.13632608,31409.0,31396.0,0.13632608]
[1609821143300,0.13632608,31409.0,31381.0,3.82597]
[1609821144502,0.10538,31411.0,31381.0,3.82597]
[1609821144702,0.0943,31410.0,31381.0,3.82597]
[1609821144902,0.0952,31409.0,31381.0,3.82597]
[1609821145302,0.0952,31409.0,31396.0,0.13632608]
[1609821147204,0.0952,31409.0,31388.0,0.09912]
[1609821148807,0.10538,31411.0,31373.0,0.10375]
[1609821149005,3.6817,31409.0,31370.0,0.01071221]
[1609821149204,3.81112,31409.0,31370.0,0.01071221]
[1609821149906,0.13632608,31378.0,31370.0,0.14703829]
[1609821150407,0.13558,31386.0,31370.0,0.01071221]
[1609821150606,0.86968,31386.0,31364.0,0.13735]
[1609821150807,0.13558,31386.0,31364.0,0.13735]
[1609821151408,3.9492,31380.0,31364.0,0.13735]
[1609821151607,0.13558,31386.0,31337.0,1.72236121]
[1609821151807,0.13558,31386.0,31339.0,4.6533]
[1609821152407,0.68768,31386.0,31339.0,4.6533]
[1609821152809,0.2799,31385.0,31339.0,4.6533]
[1609821154110,0.29919058,31385.0,31339.0,4.6533]
[1609821154311,0.47838127,31378.0,31339.0,4.6533]
[1609821154509,1.28530127,31378.0,31339.0,4.6533]
[1609821155709,0.80692,31378.0,31339.0,4.6533]
[1609821156310,0.13632608,31354.0,31339.0,4.6533]
[1609821156511,0.13632608,31354.0,31338.0,0.13632608]
[1609821156909,4.2779,31365.0,31337.0,0.13621]
[1609821157211,4.2779,31365.0,31324.0,5.0399]
[1609821158212,0.13632608,31353.0,31339.0,0.13632608]
[1609821159220,0.14372,31369.0,31339.0,0.13632608]
[1609821159409,0.14372,31369.0,31339.0,0.28353608]
[1609821159617,0.13192,31378.0,31339.0,0.28353608]
[1609821159818,5.7916362,31383.0,31339.0,0.28353608]
[1609821160212,5.7916362,31383.0,31371.0,0.13632608]
[1609821160411,0.47843838,31374.0,31371.0,0.13632608]
[1609821161111,0.6877362,31383.0,31371.0,0.13632608]
[1609821162311,0.47353479,31382.0,31370.0,0.13374]
[1609821163512,0.47353479,31382.0,31381.0,0.13632608]
[1609821163711,0.47353479,31382.0,31381.0,0.26809608]
[1609821164111,0.47353479,31382.0,31381.0,0.13177]
[1609821164913,0.47353479,31382.0,31370.0,0.13374]
[1609821165114,0.14338,31385.0,31370.0,0.13374]
[1609821165615,0.13632608,31374.0,31370.0,0.13374]
[1609821165814,0.14338,31385.0,31370.0,0.13374]
[1609821166415,0.14338,31385.0,31363.0,0.14008]
[1609821167517,0.13632608,31364.0,31358.0,4.5903]
[1609821167719,0.13632608,31364.0,31357.0,0.13632608]
[1609821169620,0.14563,31374.0,31342.0,4.6082]
[1609821172223,0.13632608,31357.0,31354.0,0.13632608]
[1609821172424,0.13632608,31357.0,31342.0,4.6082]
[1609821175429,0.13632608,31357.0,31339.0,0.14721]
[1609821175630,0.13632608,31357.0,31325.0,5.3185]
[1609821176231,5.069,31363.0,31325.0,5.3185]
[1609821176431,5.069,31363.0,31325.0,5.47333]
[1609821176831,0.13632608,31338.0,31332.0,0.13632608]
[1609821179236,0.15465,31349.0,31332.0,0.13632608]
[1609821179436,0.15465,31349.0,31332.0,0.23495608]
[1609821179638,0.15465,31349.0,31332.0,0.09863]
[1609821179841,4.2311,31352.0,31332.0,0.09863]
[1609821180836,4.2311,31352.0,31344.0,0.13632608]
[1609821181035,4.2311,31352.0,31344.0,0.26168608]
[1609821182837,4.2311,31352.0,31351.0,0.13632608]
[1609821183037,4.2311,31352.0,31344.0,0.12536]
[1609821183237,0.13632608,31359.0,31344.0,0.12536]
[1609821183438,0.11057,31355.0,31344.0,0.12536]
[1609821184438,0.11057,31355.0,31334.0,4.0924]
[1609821184839,0.13632608,31341.0,31338.0,0.13632608]
[1609821185040,0.13632608,31341.0,31334.0,4.0924]
[1609821185238,0.11057,31355.0,31334.0,4.0924]
[1609821186940,0.13632608,31342.0,31336.0,0.13632608]
[1609821187341,0.11057,31355.0,31336.0,0.13632608]
[1609821187740,0.07057,31355.0,31336.0,0.13632608]
[1609821188440,0.0946,31365.0,31336.0,0.13632608]
[1609821188641,0.7173,31360.0,31334.0,4.0924]
[1609821188842,0.13632608,31342.0,31334.0,4.0924]
[1609821190444,0.15122,31351.0,31334.0,4.0924]
[1609821192851,0.13632608,31335.0,31334.0,4.22872608]
[1609821193348,0.15122,31351.0,31334.0,4.22872608]
[1609821193848,0.15122,31351.0,31334.0,4.0924]
[1609821194648,0.15122,31351.0,31332.0,0.09863]
[1609821194849,0.14506,31356.0,31339.0,4.3553]
[1609821195051,0.14506,31356.0,31355.0,0.13632608]
[1609821195454,0.14506,31356.0,31355.0,4.99122608]
[1609821195649,0.14506,31356.0,31355.0,4.8549]
[1609821196049,0.57324009,31369.0,31355.0,4.8549]
[1609821196250,0.14563,31374.0,31355.0,4.8549]
[1609821196449,0.14338,31385.0,31355.0,4.8549]
[1609821196649,0.2891,31387.0,31355.0,4.8549]
[1609821197050,0.13632608,31379.0,31373.0,0.13632608]
[1609821197651,0.13632608,31379.0,31353.0,0.14301]
[1609821198152,4.2796,31381.0,31353.0,0.14301]
[1609821199253,4.2796,31381.0,31365.0,0.13632608]
[1609821199453,0.42334,31387.0,31365.0,0.13632608]
[1609821199854,0.42334,31387.0,31361.0,0.11701]
[1609821201256,0.13632608,31377.0,31372.0,0.13632608]
[1609821209067,0.13632608,31377.0,31361.0,0.11701]
[1609821209266,0.13632608,31377.0,31376.0,0.13632608]
[1609821210067,0.13632608,31377.0,31374.0,0.11171]
[1609821213275,0.13632608,31377.0,31376.0,0.13632608]
[1609821215680,0.2869,31390.0,31376.0,0.13632608]
[1609821215879,0.576976,31393.0,31377.0,4.0781]
[1609821216582,0.57672088,31399.0,31377.0,4.0781]
[1609821217282,0.57672088,31399.0,31398.0,0.13632608]
[1609821217483,0.57672088,31399.0,31398.0,0.24413608]
[1609821221993,0.57560728,31409.0,31398.0,0.24413608]
[1609821223294,0.57560728,31409.0,31408.0,0.13632608]
[1609821223495,0.57560728,31409.0,31408.0,0.24295608]
[1609821224297,0.02320688,31426.0,31408.0,0.24295608]
[1609821225496,0.13632608,31418.0,31413.0,0.13632608]
[1609821225997,0.0946,31417.0,31413.0,0.13632608]
[1609821227498,0.13632608,31418.0,31413.0,0.13632608]
[1609821227697,0.13632608,31418.0,31408.0,0.10663]
[1609821227898,0.13632608,31418.0,31398.0,0.10781]
[1609821228098,4.2463,31413.0,31382.0,3.8054]
[1609821229504,0.13632608,31395.0,31388.0,0.13632608]
[1609821229702,0.13632608,31395.0,31353.0,0.14301]
[1609821229903,0.13632608,31395.0,31364.0,4.5551]
[1609821230101,4.4685,31401.0,31364.0,4.5551]
[1609821230303,4.4685,31401.0,31364.0,4.70209]
[1609821231403,0.278,31410.0,31364.0,0.14699]
[1609821231605,0.13632608,31381.0,31376.0,0.13632608]
[1609821232705,0.0963,31380.0,31376.0,0.13632608]
[1609821233105,0.13632608,31381.0,31376.0,0.13632608]
[1609821233604,0.13632608,31377.0,31376.0,0.13632608]
[1609821234306,4.9469,31387.0,31374.0,0.10831]
[1609821235605,0.13632608,31377.0,31374.0,0.10831]
[1609821236909,0.0951,31376.0,31374.0,0.10831]
[1609821237308,4.9469,31387.0,31374.0,0.10831]
[1609821237507,0.13632608,31379.0,31374.0,0.24463608]
[1609821238310,0.0963,31378.0,31374.0,0.24463608]
[1609821239509,0.23262608,31378.0,31374.0,0.24463608]
[1609821239812,0.13632608,31378.0,31374.0,0.24463608]
[1609821240211,0.13632608,31378.0,31374.0,0.10831]
[1609821240412,0.13632608,31378.0,31364.0,0.14699]
[1609821240612,0.13632608,31378.0,31356.0,4.1492]
[1609821241611,0.13632608,31378.0,31371.0,0.13632608]
[1609821242012,0.0952,31377.0,31371.0,0.13632608]
[1609821243115,0.0949,31376.0,31371.0,0.13632608]
[1609821243315,0.13632608,31378.0,31371.0,0.13632608]
[1609821243519,0.13632608,31372.0,31369.0,0.12174]
[1609821243717,0.13632608,31372.0,31367.0,0.13632608]
[1609821244016,0.13632608,31372.0,31362.0,0.10485]
[1609821244317,0.0963,31371.0,31362.0,0.10485]
[1609821244520,0.13632608,31372.0,31362.0,0.10485]
[1609821245519,0.13632608,31366.0,31363.0,0.13632608]
[1609821247424,0.13632608,31366.0,31362.0,0.10485]
[1609821247821,0.0956,31365.0,31362.0,0.10485]
[1609821248120,0.13632608,31366.0,31362.0,0.10485]
[1609821248720,0.13632608,31366.0,31357.0,0.13632608]
[1609821248921,0.09875,31375.0,31357.0,0.13632608]
[1609821249119,0.72967816,31392.0,31357.0,0.13632608]
[1609821249120,0.0955,31374.0,31357.0,0.13632608]
[1609821249521,0.47832781,31381.0,31357.0,0.13632608]
[1609821249722,0.13632608,31373.0,31367.0,0.13632608]
[1609821250724,0.096,31372.0,31367.0,0.13632608]
[1609821252529,0.13632608,31373.0,31367.0,0.13632608]
[1609821253628,0.0944,31372.0,31367.0,0.13632608]
[1609821254627,0.13632608,31373.0,31367.0,0.13632608]
[1609821258929,0.13632608,31373.0,31360.0,0.10963]
[1609821259630,0.13632608,31365.0,31360.0,0.10963]
[1609821261433,0.13632608,31365.0,31357.0,0.13632608]
[1609821262634,0.13632608,31365.0,31353.0,0.14301]
[1609821262835,4.5823,31360.0,31333.0,1.8300296]
[1609821263635,0.13632608,31346.0,31338.0,0.13632608]
[1609821264236,0.13632608,31346.0,31333.0,1.8300296]
[1609821265538,0.27616608,31346.0,31333.0,1.8300296]
[1609821265736,0.13632608,31337.0,31333.0,1.8300296]
[1609821266538,0.13632608,31337.0,31332.0,0.13632608]
[1609821267137,0.13984,31346.0,31332.0,0.13632608]
[1609821267337,0.13984,31346.0,31332.0,0.29647608]
[1609821267541,0.15011,31356.0,31332.0,0.29647608]
[1609821267739,0.13632608,31351.0,31343.0,0.13632608]
[1609821269741,0.13632608,31351.0,31332.0,0.16015]
[1609821270642,0.10548,31356.0,31332.0,0.16015]
[1609821272042,0.13632608,31336.0,31332.0,0.16015]
[1609821272444,0.13632608,31336.0,31326.0,0.13632608]
[1609821272744,0.13632608,31336.0,31320.0,3.9939]
[1609821273146,0.13632608,31336.0,31318.0,1.81571935]
[1609821273945,0.10875,31340.0,31322.0,0.13632608]
[1609821274145,0.10875,31340.0,31322.0,0.14312]
[1609821275949,0.13632608,31325.0,31322.0,0.14312]
[1609821276349,0.10875,31340.0,31322.0,0.14312]
[1609821277952,0.10875,31340.0,31321.0,0.13751]
[1609821278753,0.13632608,31322.0,31321.0,0.13751]
[1609821280553,0.09719,31333.0,31321.0,0.13751]
[1609821280755,0.13632608,31329.0,31321.0,0.13751]
[1609821281954,0.13632608,31329.0,31294.0,1.85698054]
[1609821282154,0.13632608,31329.0,31300.0,4.5708]
[1609821282354,0.13632608,31329.0,31300.0,4.68535]
[1609821282755,0.13632608,31316.0,31300.0,4.68535]
[1609821282955,4.16339,31333.0,31300.0,4.68535]
[1609821284659,0.13632608,31318.0,31317.0,0.13632608]
[1609821284859,4.16339,31333.0,31317.0,0.13632608]
[1609821285260,0.09719,31333.0,31317.0,0.13632608]
[1609821285660,0.47903047,31335.0,31317.0,0.13632608]
[1609821286261,0.47903047,31335.0,31315.0,0.13843]
[1609821286561,0.2828,31339.0,31315.0,0.13843]
[1609821286762,0.2828,31339.0,31332.0,0.13632608]
[1609821286963,0.10875,31340.0,31315.0,0.13843]
[1609821287364,0.2921,31348.0,31315.0,0.13843]
[1609821290266,0.2921,31348.0,31314.0,4.4103]
[1609821291067,0.2921,31348.0,31338.0,0.13632608]
[1609821291267,0.2921,31348.0,31314.0,4.4103]
[1609821291268,0.2921,31348.0,31336.0,0.12569]
[1609821291468,0.2921,31348.0,31328.0,0.12787]
[1609821292370,0.2921,31348.0,31314.0,4.4103]
[1609821293173,0.2921,31348.0,31317.0,0.13632608]
[1609821294174,0.2921,31348.0,31315.0,0.11217]
[1609821294374,4.0984,31339.0,31315.0,0.11217]
[1609821294774,4.20944,31339.0,31315.0,0.11217]
[1609821295076,0.13632608,31316.0,31315.0,0.11217]
[1609821297975,0.13632608,31316.0,31300.0,0.11455]
[1609821298177,0.13632608,31316.0,31296.0,4.3665]
[1609821299077,0.13632608,31301.0,31300.0,0.13632608]
[1609821299476,4.618,31319.0,31300.0,0.13632608]
[1609821299677,4.618,31319.0,31300.0,0.25599608]
[1609821300477,4.3901,31301.0,31300.0,0.11239]
[1609821300877,4.3901,31301.0,31300.0,9e-05]
[1609821301078,4.52642608,31301.0,31289.0,1.77773557]
[1609821301278,0.13632608,31301.0,31289.0,1.07503557]
[1609821301478,0.13632608,31301.0,31289.0,0.84183557]
[1609821301479,4.2956,31290.0,31289.0,0.84183557]
[1609821301679,4.41634,31290.0,31213.0,0.1771]
[1609821301878,0.12074,31290.0,31286.0,1.2381679]
[1609821302080,4.3719,31287.0,31286.0,0.9650679]
[1609821302279,4.3719,31287.0,31286.0,0.5071679]
[1609821302480,4.3719,31287.0,31283.0,2.11175812]
[1609821302681,0.21564,31290.0,31283.0,2.10825812]
[1609821302881,4.2678,31284.0,31283.0,2.10825812]
[1609821303684,4.40412608,31284.0,31283.0,2.10825812]
[1609821303882,4.40412608,31284.0,31283.0,1.24775812]
[1609821304284,4.40412608,31284.0,31283.0,0.53644812]
[1609821304483,4.40412608,31284.0,31283.0,0.46284812]
[1609821304683,4.40412608,31284.0,31283.0,0.30614812]
[1609821304884,4.40412608,31284.0,31280.0,1.27646067]
[1609821305084,0.13632608,31284.0,31280.0,0.72906067]
[1609821305285,4.0087,31281.0,31277.0,2.38123487]
[1609821305483,4.0087,31281.0,31277.0,0.72002487]
[1609821305684,0.13632608,31278.0,31252.0,0.2857]
[1609821305885,0.13632608,31278.0,31274.0,2.4446572]
[1609821306085,0.13632608,31278.0,31274.0,1.6199572]
[1609821306284,5.0574,31275.0,31274.0,1.5388572]
[1609821306484,5.0574,31275.0,31274.0,1.3247572]
[1609821306686,5.0574,31275.0,31274.0,0.69872669]
[1609821306888,5.0574,31275.0,31274.0,0.62222669]
[1609821307086,5.17508,31275.0,31274.0,0.62222669]
[1609821307288,5.17508,31275.0,31274.0,0.51952669]
[1609821307487,5.27178,31275.0,31274.0,0.44322669]
[1609821307687,5.27178,31275.0,31252.0,0.2857]
[1609821307888,5.27178,31275.0,31271.0,2.81537952]
[1609821308089,5.27178,31275.0,31271.0,2.79687952]
[1609821308288,5.27178,31275.0,31271.0,2.73237952]
[1609821308588,5.27178,31275.0,31271.0,2.69347952]
[1609821308789,5.27178,31275.0,31271.0,2.68467952]
[1609821309089,0.21438,31275.0,31271.0,2.62157952]
[1609821309289,4.5682,31274.0,31271.0,2.55797952]
[1609821309688,0.13632608,31272.0,31271.0,2.55797952]
[1609821310391,4.18412608,31272.0,31271.0,2.55797952]
[1609821310589,4.18412608,31272.0,31271.0,2.46107952]
[1609821310790,4.18412608,31272.0,31271.0,1.86877411]
[1609821310989,4.18412608,31272.0,31271.0,1.71807411]
[1609821311191,4.18412608,31272.0,31268.0,2.90997196]
[1609821311392,4.28012608,31272.0,31268.0,2.50197196]
[1609821311593,4.28012608,31272.0,31268.0,2.47547196]
[1609821311794,4.28012608,31272.0,31268.0,2.34887196]
[1609821311993,4.28012608,31272.0,31268.0,2.34407196]
[1609821312193,4.28012608,31272.0,31268.0,2.12137196]
[1609821312393,4.1438,31272.0,31268.0,2.11217196]
[1609821312793,4.1438,31272.0,31268.0,1.87367196]
[1609821312995,4.1438,31272.0,31252.0,0.2857]
[1609821313194,4.1438,31272.0,31260.0,3.203191]
[1609821313694,0.13632608,31261.0,31260.0,3.203191]
[1609821313894,0.81887608,31261.0,31260.0,3.203191]
[1609821314096,14.00504323,31261.0,31252.0,0.2857]
[1609821314294,14.00504323,31261.0,31252.0,0.0926]
[1609821314495,14.00504323,31261.0,31227.0,3.4872]
[1609821314694,13.42924323,31261.0,31199.0,0.13632608]
[1609821314896,3.8593,31249.0,31199.0,0.13632608]
[1609821315095,3.97163,31249.0,31199.0,0.13632608]
[1609821315496,4.45197972,31249.0,31165.0,4.5058]
[1609821315695,8.82035187,31212.0,31165.0,4.5058]
[1609821315895,8.82035187,31212.0,31204.0,0.13632608]
[1609821316096,8.82035187,31212.0,31204.0,0.24913608]
[1609821318399,8.82035187,31212.0,31204.0,0.11281]
[1609821318800,1.30302659,31205.0,31204.0,0.11281]
[1609821319799,1.30302659,31205.0,31138.0,0.5331]
[1609821320000,0.13632608,31192.0,31181.0,0.13632608]
[1609821320399,5.092,31190.0,31181.0,0.13632608]
[1609821320602,0.13632608,31192.0,31134.0,0.0973]
[1609821320799,3.9982,31182.0,31158.0,0.12701221]
[1609821321599,2.838,31182.0,31158.0,0.12701221]
[1609821321799,15.55013914,31205.0,31158.0,0.12701221]
[1609821322000,0.13632608,31186.0,31172.0,0.13632608]
[1609821322400,15.55013914,31205.0,31172.0,0.13632608]
[1609821322599,15.55013914,31205.0,31172.0,0.27513608]
[1609821323103,4.02942551,31173.0,31172.0,0.14826]
[1609821323501,2.02762551,31173.0,31172.0,0.14826]
[1609821323702,1.30571664,31176.0,31172.0,3.91486]
[1609821324301,1.30571664,31176.0,31172.0,0.14826]
[1609821324501,0.00950945,31173.0,31158.0,0.12701221]
[1609821324701,0.67144206,31176.0,31172.0,0.11169]
[1609821325103,0.00391598,31181.0,31172.0,0.11169]
[1609821326204,0.00391654,31175.0,31172.0,0.16036]
[1609821327103,0.00389031,31178.0,31172.0,0.04867]
[1609821327705,0.00389051,31173.0,31162.0,0.08723215]
[1609821327904,0.00389051,31173.0,31172.0,0.11949]
[1609821328306,0.66715861,31174.0,31172.0,0.07082]
[1609821329507,0.66715861,31174.0,31172.0,0.11228]
[1609821330108,0.66715861,31174.0,31172.0,0.08628]
[1609821330508,0.13632608,31173.0,31158.0,0.12701221]
[1609821330710,0.23937608,31173.0,31142.0,0.13632608]
[1609821330911,4.2547,31167.0,31142.0,0.13632608]
[1609821332211,4.2547,31167.0,31124.0,4.7038]
[1609821332613,0.13632608,31139.0,31135.0,0.13632608]
[1609821333012,0.13632608,31139.0,31124.0,4.7038]
[1609821333210,0.13686,31163.0,31124.0,4.7038]
[1609821333411,0.13686,31163.0,31124.0,4.81714]
[1609821333812,0.66925125,31157.0,31124.0,4.81714]
[1609821334814,0.13686,31163.0,31124.0,4.81714]
[1609821336615,0.13632608,31141.0,31140.0,0.13632608]
[1609821336814,0.13686,31163.0,31124.0,0.11334]
[1609821337014,0.13686,31163.0,31136.0,5.103]
[1609821337214,0.13686,31163.0,31124.0,0.11334]
[1609821337414,0.13686,31163.0,31136.0,3.94312]
[1609821337815,0.66304909,31164.0,31136.0,3.94312]
[1609821339315,0.13632608,31161.0,31160.0,0.13632608]
[1609821340616,0.66304909,31164.0,31160.0,0.13632608]
[1609821341018,0.66304909,31164.0,31160.0,0.28250608]
[1609821343125,0.58135242,31166.0,31163.0,4.0133]
[1609821343323,0.72550741,31174.0,31165.0,0.13632608]
[1609821343522,0.67360741,31174.0,31165.0,0.13632608]
[1609821343725,0.60910741,31174.0,31160.0,0.14618]
[1609821343923,0.48120741,31174.0,31160.0,0.14618]
[1609821344124,0.35320741,31174.0,31160.0,0.14618]
[1609821344323,2.38036181,31179.0,31161.0,0.0972]
[1609821344524,2.33316181,31179.0,31161.0,0.0972]
[1609821344724,2.31716181,31179.0,31161.0,0.0972]
[1609821345324,2.25796181,31179.0,31178.0,0.13632608]
[1609821345525,2.21196181,31179.0,31178.0,0.29500608]
[1609821345727,0.1638,31196.0,31178.0,0.29500608]